Cogmind - Beta 14 @@@ ROGUE MODE // 2024.09.14 @ 05:03:08 Player: J1ang-5h1 Result: Destroyed by D-53 Grenadier with Mini Grenade Launcher Performance ------------- Evolutions (0) 0 Regions Visited (4) 800 Robots Destroyed (23) 115 Value Destroyed (407) 407 Prototype IDs (25) 500 Alien Tech Used (0) 0 Bonus (60) 60 TOTAL SCORE: 1882 Bonus ------- Follower Combat Kills 60 Cogmind --------- Core Integrity 0/250 Matter 193/300 Energy 55/100 System Corruption 1% Temperature Cool (0) Movement Treading (400) Ox3 Location -9/Mines Parts ------- > --- POWER (1) -------- (None) > --- PROPULSION (2) --- Light Treads Light Treads > --- UTILITY (2) ------ Cargo Storage Unit > --- WEAPON (2) ------- Shock Rifle Gauss Rifle > --- INVENTORY (30) --- Makeshift Power Source Light Treads Light Treads Carbon-fiber Leg Carbon-fiber Leg Flying Fortress v7 Heat Sink Improved Heat Sink Humpback Small Matter Pod (50) Structural Scanner Makeshift Sensor Array Improved Terrain Scanner Seismic Detector Target Analyzer Target Analyzer Utility Shielding Makeshift Hacking Suite Beam Cannon Assault Rifle Grenade Launcher Rocket Launcher Remote Datajack Plasma Cutter Makeshift Sword Peak State ------------ > --- POWER ------------ Light Ion Engine > --- PROPULSION ------- Light Treads Wheel > --- UTILITY ---------- Cargo Storage Unit > --- WEAPON ----------- Gauss Rifle Makeshift Sword > --- INVENTORY -------- Makeshift Power Source Light Treads Light Treads Light Treads Carbon-fiber Leg Carbon-fiber Leg Flying Fortress v7 Heat Sink Improved Heat Sink Humpback Small Matter Pod Structural Scanner Makeshift Sensor Array Improved Terrain Scanner Seismic Detector Target Analyzer Target Analyzer Utility Shielding Makeshift Hacking Suite Shock Rifle Beam Cannon Assault Rifle Grenade Launcher Rocket Launcher Remote Datajack Plasma Cutter [Rating: 21] Favorites ----------- Power Light Ion Engine Engine Light Ion Engine Propulsion Light Treads Treads Light Treads Leg Aluminum Leg Wheel Wheel Utility Cargo Storage Unit Device Seismic Detector Storage Cargo Storage Unit Protection Propulsion Shielding Weapon Light Assault Rifle Energy Gun EM Pulse Gun Energy Cannon Beam Cannon Ballistic Gun Light Assault Rifle Launcher Rocket Launcher Special Weapon Mining Laser Slashing Weapon Makeshift Sword Build | -11 -10 -10 -10 -9 ------- Run | Yrd Mat Min Exi Min Slots Evolved . | . . . . . Power . | . . . . . Propulsion . | . . . . . Utility . | . . . . . Weapon . | . . . . . Parts Attached 29 | 5 15 . 3 6 Power 1 | . 1 . . . Engine 1 | . 1 . . . Core . | . . . . . Reactor . | . . . . . Propulsion 8 | 2 5 . . 1 Treads 7 | 2 4 . . 1 Leg . | . . . . . Wheel 1 | . 1 . . . Hover . | . . . . . Flight . | . . . . . Utility 5 | 1 2 . 2 . Device 2 | 1 1 . . . Storage 2 | . . . 2 . Processor . | . . . . . Hackware . | . . . . . Protection 1 | . 1 . . . Artifact . | . . . . . Weapon 15 | 2 7 . 1 5 Energy Gun 4 | 1 2 . . 1 Energy Cannon 1 | . 1 . . . Ballistic Gun 5 | 1 2 . . 2 Ballistic Cannon . | . . . . . Launcher 3 | . 1 . . 2 Special Weapon 1 | . 1 . . . Impact Weapon . | . . . . . Slashing Weapon 1 | . . . 1 . Piercing Weapon . | . . . . . Special Melee Weapon . | . . . . . Unidentified Prototypes . | . . . . . Parts Lost 4 | . 2 . . 2 Power 1 | . . . . 1 Propulsion 1 | . . . . 1 Utility . | . . . . . Weapon 2 | . 2 . . . Highest Loss Streak 2 | . 1 . . 2 To Critical Strikes . | . . . . . Average Slot Usage (%) 89 | . 98 100 83 81 Engine 14 | . 14 14 14 14 Treads 19 | . 27 14 14 14 Wheel 8 | . . 14 14 13 Device 4 | . 9 14 . . Storage 13 | . 14 14 13 14 Protection 1 | . 4 . . . Energy Gun 2 | . 5 . . . Energy Cannon 6 | . 1 14 11 . Ballistic Gun 8 | . 19 14 . 8 Slashing Weapon 7 | . . . 13 14 Peak Build Rating 21 | 8 8 8 18 21 Average Rating 11 | 6 7 8 13 20 On Entrance 9 | 6 8 8 8 18 Naked Turns . | . . . . . Heaviest Build 149 | 12 13 13 148 149 Greatest Support 40 | 40 40 10 10 40 Greatest Overweight (x) 14 | . 1 1 14 14 Average Overweight (x) 5 | . . 1 12 13 Largest Inventory Capacity 30 | 8 8 8 30 30 Average Capacity 19 | 8 8 8 29 30 Most Carried 30 | 8 8 8 30 30 Average Carried 16 | 7 7 8 22 29 Final Capacity 30 | 8 8 8 30 30 Final Carried 30 | 8 8 8 30 29 Class Distribution -------------------- 54% | Hauler-Mutant 45% | Mutant Dominant Class ---------------- Mutant | -10/Materials Mutant | -10/Mines Hauler-Mutant | -10/Exiles Hauler-Mutant | -9/Mines Resources | -11 -10 -10 -10 -9 ----------- Run | Yrd Mat Min Exi Min Matter Collected 662 | 283 281 . 67 31 Remotely . | . . . . . Salvage Created 1164 | 188 518 . 449 9 Parts 78 | 12 45 . 21 . Haulers Intercepted . | . . . . . Recyclers Shooed 1 | . 1 . . . Parts Field Recycled . | . . . . . Retrieved Matter . | . . . . . Parts Self-Destructed . | . . . . . Prevented . | . . . . . Kills | -11 -10 -10 -10 -9 ------- Run | Yrd Mat Min Exi Min Combat Hostiles Destroyed 22 | . 13 . . 9 Guns 13 | . 13 . . . AOE 9 | . . . . 9 Classes Destroyed 6 | 2 3 . . 1 Tunneler 6 | 5 1 . . . Recycler 1 | 1 . . . . Watcher 3 | . 3 . . . Swarmer 6 | . 6 . . . Grunt 7 | . 7 . . . Assembled 9 | . . . . 9 Best Kill Streak 9 | 2 5 . . 9 Combat Bots Only 9 | . 5 . . 9 Max Kills in Single Turn 3 | 1 1 . . 3 Gunslinging . | . . . . . Exploded 3 | . . . . 3 Melee . | . . . . . Uniques/NPCs Destroyed . | . . . . . Combat | -11 -10 -10 -10 -9 -------- Run | Yrd Mat Min Exi Min Hostile Shots Fired 116 | . 82 . . 34 Missed 43 | . 31 . . 12 Damage Taken 1006 | . 518 . . 488 Core 260 | . 105 . . 155 Absorbed by Shields . | . . . . . Redirected to Shielding 21 | . 21 . . . Regen/Repaired (Parts) 18 | . 18 . . . Core Remaining (%) 100 | 100 . . . . Volleys Fired 123 | 36 80 . . 7 Largest 2 | 2 2 . . 1 Hottest 100 | 80 100 . . 33 Shots Fired 171 | 39 124 . 1 7 Gun 157 | 39 118 . . . Cannon 4 | . 3 . 1 . Launcher 8 | . 1 . . 7 Special 2 | . 2 . . . Kinetic 134 | 33 101 . . . Thermal 6 | . 5 . 1 . Explosive 8 | . 1 . . 7 Electromagnetic 23 | 6 17 . . . Robot Hit Streak 15 | 10 15 . . 1 Robot Miss Streak 5 | 3 5 . . 1 Penetration Max . | . . . . . Secondary Targets 2 | . 2 . . . Max Gunslinging Chain 1 | . 1 . . . Shots Hit Robots 124 | 24 74 . 23 3 Core Hits 79 | 11 35 . 10 23 Critical Kills . | . . . . . Critical Parts Destroyed 1 | 1 . . . . Critical Strikes 2 | 1 1 . . . Destroy 1 | 1 . . . . Corrupt 1 | . 1 . . . Melee Attacks 25 | . . . 23 2 Impact . | . . . . . Slashing 25 | . . . 23 2 Piercing . | . . . . . Sneak Attacks 1 | . . . . 1 Combat Hostiles . | . . . . . Follow-up Attacks . | . . . . . Damage Inflicted 3595 | 214 670 . 1790 921 Guns 832 | 214 618 . . . Cannons 52 | . 52 . . . Explosions 817 | . . . . 817 Melee 1894 | . . . 1790 104 Ramming . | . . . . . Kinetic 660 | 160 500 . . . Thermal 52 | . 52 . . . Explosive 817 | . . . . 817 Electromagnetic 172 | 54 118 . . . Impact . | . . . . . Slashing 1894 | . . . 1790 104 Piercing . | . . . . . Highest Corruption 1 | . 1 1 1 1 Average Corruption 1 | . 1 1 1 1 Corruption Purged . | . . . . . Corruption Blocked . | . . . . . Effects 32 | . 11 . 18 3 Message Errors 9 | . 3 . 6 . Matter Fused 11 | . 4 . 6 1 Heat Flow Errors 6 | . 2 . 3 1 Parts Rejected 1 | . 1 . . . Data Loss (minor) 3 | . 1 . 1 1 Data Loss (major) 1 | . . . 1 . Misfires 1 | . . . 1 . Overload Shots . | . . . . . Overflow Damage 278 | . . . 228 50 Projectiles . | . . . . . Explosions 23 | . . . . 23 Melee 255 | . . . 228 27 Knockbacks . | . . . . . Impact . | . . . . . Kinetic . | . . . . . Secondary . | . . . . . Self-Inflicted Damage . | . . . . . Shots . | . . . . . Rammed . | . . . . . Targets Rammed . | . . . . . Kicked . | . . . . . Crushed . | . . . . . Highest Temperature 234 | 54 228 . 160 234 Average Temperature 51 | 29 42 . 70 124 Received Heat Transfer 180 | . 180 . . . Siege Activations . | . . . . . Robots Corrupted . | . . . . . Combat Hostiles . | . . . . . Parts Fried . | . . . . . Impact Corruptions . | . . . . . Robots Melted . | . . . . . Combat Hostiles . | . . . . . Parts Melted . | . . . . . Heat Transferred 111 | . 111 . . . Parts Sabotaged . | . . . . . Parts Stolen . | . . . . . Parts Stripped . | . . . . . Power Chain Reactions . | . . . . . Alert | -11 -10 -10 -10 -9 ------- Run | Yrd Mat Min Exi Min Peak Influence 276 | 30 276 66 . 76 Initial 66 | . 19 66 . . Average 98 | 19 120 66 . 34 Maximum Alert Level 1 | . 1 . . . Low Security (%) 90 | 100 87 100 . 100 Level 1 9 | . 12 . . . Level 2 . | . . . . . Level 3 . | . . . . . Level 4 . | . . . . . Level 5 . | . . . . . High Security . | . . . . . Max Security . | . . . . . Squads Dispatched 3 | . 3 . . . Investigation 2 | . 2 . . . Extermination . | . . . . . Reinforcement 1 | . 1 . . . Assault . | . . . . . Garrison . | . . . . . Intercept . | . . . . . Searches Triggered . | . . . . . Construction Impeded . | . . . . . Haulers Reinforced . | . . . . . Active Scanning Responses . | . . . . . Cargo Convoy Interrupts . | . . . . . Stealth | -11 -10 -10 -10 -9 --------- Run | Yrd Mat Min Exi Min Distress Signals 1 | . 1 . . . Communications Jammed . | . . . . . Distress Signals . | . . . . . Times Spotted 34 | . 23 . . 11 Peak Tracking Total 8 | . 5 . . 8 Tactical Retreats 2 | . 2 . . . Traps | -11 -10 -10 -10 -9 ------- Run | Yrd Mat Min Exi Min Traps Triggered 3 | . 3 . . . Indirectly . | . . . . . Trap Hack Attempts . | . . . . . Triggered . | . . . . . Disarmed . | . . . . . Reprogrammed . | . . . . . Reused . | . . . . . Traps Extracted . | . . . . . Installed . | . . . . . Triggered . | . . . . . Machines | -11 -10 -10 -10 -9 ---------- Run | Yrd Mat Min Exi Min Machines Disabled . | . . . . . Max in Single Turn . | . . . . . Machines Repaired . | . . . . . Machines Dismantled . | . . . . . Machines Sabotaged . | . . . . . Overloaded Fab Kills . | . . . . . Hacking | -11 -10 -10 -10 -9 --------- Run | Yrd Mat Min Exi Min Machines Accessed 12 | . 10 . 2 . Terminals 7 | . 7 . . . Fabricators . | . . . . . Repair Stations 1 | . 1 . . . Recycling Units 2 | . 2 . . . Scanalyzers . | . . . . . Garrison Access . | . . . . . Total Hacks 44 | . 39 . 5 . Successful 27 | . 22 . 5 . Failed 16 | . 16 . . . Catastrophic 2 | . 2 . . . Database Lockouts 1 | . 1 . . . Manual 26 | . 25 . 1 . Terminals 22 | . 22 . . . Fabricators . | . . . . . Repair Stations 6 | . 6 . . . Recycling Units 11 | . 11 . . . Scanalyzers . | . . . . . Garrison Access . | . . . . . Terminal Hacks 10 | . 5 . 5 . Record 4 | . . . 4 . Robot Analysis 2 | . 2 . . . Prototype ID Bank 1 | . 1 . . . Locate Traps 1 | . 1 . . . Hauler Manifests 1 | . 1 . . . Derelict Proto ID Bank 1 | . . . 1 . Fabricator Hacks . | . . . . . Repair Station Hacks 3 | . 3 . . . Scan Component 2 | . 2 . . . Repair 1 | . 1 . . . Recycling Unit Hacks 3 | . 3 . . . Report Inventory 2 | . 2 . . . Retrieve Components 1 | . 1 . . . Scanalyzer . | . . . . . Garrison Access Hacks . | . . . . . Unauthorized Hacks 11 | . 11 . . . Terminals 9 | . 9 . . . Botnet 2 | . 2 . . . Skim 7 | . 7 . . . Fabricators . | . . . . . Repair Stations . | . . . . . Recycling Units 2 | . 2 . . . Tunnel 2 | . 2 . . . Scanalyzers . | . . . . . Garrison Access . | . . . . . Data Cores Recovered . | . . . . . Used . | . . . . . Hacking Detections 10 | . 10 . . . Full Trace Events . | . . . . . Feedback Events . | . . . . . Feedback Blocked . | . . . . . Robot Schematics Acquired . | . . . . . Robots Built . | . . . . . Authchips . | . . . . . Time . | . . . . . Total Robot Build Rating . | . . . . . Part Schematics Acquired . | . . . . . Parts Built . | . . . . . Authchips . | . . . . . Time . | . . . . . Total Part Build Rating . | . . . . . Parts Repaired 1 | . 1 . . . Time 13 | . 13 . . . Parts Recycled . | . . . . . Recycled Matter . | . . . . . Retrieved Matter . | . . . . . Retrieved Components 3 | . 3 . . . Parts Scanalyzed . | . . . . . Part Schematics Acquired . | . . . . . Parts Damaged . | . . . . . Bothacking | -11 -10 -10 -10 -9 ------------ Run | Yrd Mat Min Exi Min Used RIF Installer . | . . . . . Robots Hacked . | . . . . . Non-combat . | . . . . . Combat . | . . . . . Robot Hacks Applied . | . . . . . Relay Couplers Released . | . . . . . Fabnet Peak Effective % . | . . . . . Robots Rewired 4 | . . . 4 . Allies Hacked . | . . . . . Hacks Repelled . | . . . . . Allies | -11 -10 -10 -10 -9 -------- Run | Yrd Mat Min Exi Min Total Allies 4 | . . . 4 . Largest Group 4 | . . . 4 4 Highest-Rated Group 58 | . . . 58 58 Highest-Rated Ally 21 | . . . 21 21 Total Orders . | . . . . . Ally Attacks 16 | . . . . 16 Total Damage 265 | . . . . 265 Kills 3 | . . . . 3 Allies Corrupted . | . . . . . Allies Melted . | . . . . . Intel | -11 -10 -10 -10 -9 ------- Run | Yrd Mat Min Exi Min Robot Analysis Total 2 | . 2 . . . Derelict Logs Recovered 1 | . . . . 1 Drone Launches . | . . . . . Drone Recoveries . | . . . . . Exploration | -11 -10 -10 -10 -9 ------------- Run | Yrd Mat Min Exi Min Turns Passed 4936 | 228 1892 38 2413 365 Spaces Moved 2108 | 94 997 40 862 115 Core . | . . . . . Treads 953 | 11 939 . . 3 Legs 83 | 83 . . . . Wheels 1072 | . 58 40 862 112 Hover . | . . . . . Flight . | . . . . . Fastest Speed 80 | 120 95 95 80 290 Average Speed 206 | 124 156 95 268 292 Slowest Speed 400 | 160 160 95 290 400 Overloaded Moves . | . . . . . Propulsion Burnouts . | . . . . . Robots Hopped . | . . . . . Cave-ins Triggered . | . . . . . Exploration Rate (%) 47 | 4 98 14 94 29 Regions Visited 4 Branch Regions 3 Pre-discovered Areas 6 | . 5 . 1 . Known Exits Taken 1 | . . 1 . . Unknown Exits Taken 3 | 1 1 . 1 . Scrap Searched 2 | . . . . 2 Spaces Dug 2 | . 2 . . . Terrain Destroyed 53 | . 11 . . 42 Melee . | . . . . . Projectile 2 | . 2 . . . AOE 51 | . 9 . . 42 Terrain Rammed . | . . . . . Walls Destroyed . | . . . . . Machines Disabled . | . . . . . Actions | -11 -10 -10 -10 -9 --------- Run | Yrd Mat Min Exi Min Total 2514 | 172 1225 39 946 132 Wait 142 | 34 108 . . . Move 2104 | 93 996 39 861 115 Hop . | . . . . . Pick Up 44 | 3 14 . 26 1 Fast Attach 5 | 1 2 . 1 1 Attach 6 | . 4 . 1 1 Detach 1 | . . . 1 . Swap 18 | 4 9 . 1 4 Drop 21 | 1 12 . 7 1 Fire 123 | 36 80 . . 7 Melee 25 | . . . 23 2 Ram . | . . . . . Kick . | . . . . . Crush . | . . . . . Escape Stasis . | . . . . . Rewire 25 | . . . 25 . Trap . | . . . . . Miscellaneous . | . . . . . Route ------- -11/Scrapyard -10/Materials (discovered 4 exits: *Mat x3 / [*Min]) -10/Mines (discovered 4 exits: Mat x2 / *Exi / Sub) -10/Exiles (discovered 2 exits: [*Min x2]) -9/Mines History --------- Turn | Location | Event 12 | -11/Scrapyard | Discovered new exit (range 3) 229 | -11/Scrapyard | Entered Materials 263 | -10/Materials | Discovered new exit (range 14) 314 | -10/Materials | Build established: Mutant 413 | -10/Materials | Repaired Tractor Beam 701 | -10/Materials | Discovered new exit (range 7) 1376 | -10/Materials | Learned Storage emergency access door positions 1439 | -10/Materials | Learned location of Mines (-10) 1465 | -10/Materials | Discovered new exit (range 3) 1490 | -10/Materials | Learned 2 Mines zone layouts 1532 | -10/Materials | Learned location of 2 exits from Mines 1563 | -10/Materials | Learned location of 1 exit from Recycling 1586 | -10/Materials | Learned 2 Mines zone layouts 1618 | -10/Materials | Learned location of 2 exits from Mines 1652 | -10/Materials | Discovered new exit (range 12) 1659 | -10/Materials | Learned Storage emergency access door positions 1740 | -10/Materials | Central database locked down 1767 | -10/Materials | Learned Storage terminal intel 2121 | -10/Materials | Entered Mines 2122 | -10/Mines | Identified exit to Exiles 2122 | -10/Mines | Identified exit to Subcaves 2122 | -10/Mines | Identified exit to Materials 2152 | -10/Mines | Deemed a non-threat by the Exiles lab entrance 2159 | -10/Mines | Entered Exiles 2159 | -10/Exiles | Found Exiles lab destroyed 2321 | -10/Exiles | Learned location of Zion (-6) 2551 | -10/Exiles | Build established: Hauler-Mutant 3473 | -10/Exiles | Discovered new exit (range 14) 3835 | -10/Exiles | Discovered new exit (range 12) 4262 | -10/Exiles | Opened EX-Vault 4284 | -10/Exiles | Found Flying Fortress v7 4572 | -10/Exiles | Entered Mines 4572 | -9/Mines | Accompanied by 4 allies 4727 | -9/Mines | Lost 3 allies 4891 | -9/Mines | Learned Materials stockpile data 4895 | -9/Mines | Assembled infested the area 4900 | -9/Mines | Assisted by a Guerilla fighting off Assembled 4911 | -9/Mines | Core integrity fell below 50% 4914 | -9/Mines | Core integrity fell below 20% 4937 | -9/Mines | Destroyed by D-53 Grenadier with Mini Grenade Launcher Last Messages --------------- 04909_ as-83769 destroyed. 04913_ Destroyed Unknown Hover Unit. 04913_ as-18525 destroyed. 04915_ Wheel destroyed. 04915_ as-86986 destroyed. 04916_ Slug penetrates as-08761. 04916_ Destroyed Unknown Hover Unit. 04917_ as-08761 destroyed. 04917_ as-63224 destroyed. 04922_ Slug penetrates Wall. 04922_ as-55093 destroyed. 04926_ Slug penetrates Wall. 04929_ as-40556 destroyed. 04929_ Slug penetrates Wall. 04931_ Commando 1a destroyed. 04931_ T-07 Excavator is excavating. 04932_ The unstable cave ceiling collapses. 04932_ Lgt. Ion Engine destroyed. 04935_ The unstable cave ceiling collapses. 04935_ T-07 Excavator is excavating. Map ----- +----------------------------------------------------+ | | | | | | | | | | | ?????????????????????????????????????????????????? | | ?????????????????????????????????????????????????? | | ?????????????????????????????????????????????????? | | ########?????????????????????????????????????????? | | # ## #????????????????????????#????????????????? | | #??????????????????????? ??????????????? | | #?????????####?????????# ????????????? | | # #????????## ##?????### #???????????? | | ## #????????# #????# ??????????? | | ?#### #????????# ##### ??????????? | | ????# #????????# ## ??????????? | | ????# ########## ??????????? | | ????# # ??????????? | | ????# ######### ??????????? | | ????# #???????## ## #????????????? | | ????# ????????# ### d #????????????? | | ????####????????# #?## d #????????????? | | ??????????????###h # ##?????????????? | | ?????????????## =! ###??????????????? | | ?????????????? #????????????????? | | ###???????????? # @ #????????????????? | | #???????????? # #% #????????????????? | | #%#???????????####### ?????????????????? | | #!#?????????????????# # #????????????????? | | # #?????????????????# # #????????????????? | | #?????????????????# ##### $?????????????????? | | ###?????????????????# ?????? ###????????????????? | | ????????????????????#t??????? #??????????????????? | | ???????????????????? ????????#??????????????????? | | ???????????????????##????????????????????????????? | | ?????????????????????????????????????????????????? | | ?????????????????????????????????????????????????? | | ?????????????????????????????????????????????????? | | ?????????????????????????????????????????????????? | | ?????????????????????????????????????????????????? | | ?????????????????????????????????????????????????? | | ?????????????????????????????????????????????????? | | ?????????????????????????????????????????????????? | | ?????????????????????????????????????????????????? | | ?????????????????????????????????????????????????? | | ?????????????????????????????????????????????????? | | ?????????????????????????????????????????????????? | | ?????????????????????????????????????????????????? | | ?????????????????????????????????????????????????? | | ?????????????????????????????????????????????????? | +----------------------------------------------------+ Best States ------------- Heat Dissipation 25 Energy Generation 10 Energy Capacity 125 Matter Stores 300 Matter Capacity 300 Sight Range 16 Terrain Scan Density 10 Propulsion Shielding 33 Evasion (%) 55 Recoil Reduction 2 Item Schematics ----------------- None Robot Schematics ------------------ None Fabricated ------------ Nothing Alien Tech Used ----------------- None Achievements -------------- None Challenges ------------ None Game ------ Seed TerrabombFactorySteel Manual? 0 Play Time 00:27:33 Cumulative 293.2 hours Start 2024.09.14 @ 04:37:52 End 2024.09.14 @ 05:03:08 Sessions 1 Manual Loads 0 Difficulty Rogue Special Mode None Game No. 214 Rogue 204 Adventurer 0 Explorer 10 Win Type - Total 3 Types 3/0/0/0/0/0/0/0/0 Lore% 75 Gallery% 73 Achievement% 56 Wizard Run 0 Options --------- Layout 2 ASCII 0 Keyboard 0 Movement Arrows Keybinds 1 Fullscreen 1 Font 24/Smallcaps Map View 50x44 Zoom Use 0% Tactical HUD 1 Map Filters NONE Filters NONE Steam 1 RUN: 5f306425-93f7-4cb7-a001-792a878ab8e4